{"text_format":"1","workbook":"xlsx","n_sheets":11,"sheets":["Mediadienst","P1","P2","P3","P4","verklaring","Vindbaarheid EP","Totaal","Toelichting","Voorbeeld","Lijsten"],"not_rendered":{"charts":0,"images":0,"macros":1,"external_links":1,"defined_names":10,"comments":0,"pivot_tables":0},"unopened":[],"bounds":{"document_bytes":16777216,"sheet_cells":100000,"rows_first":2000,"rows_last":500,"rows_between":2000,"halvings":0,"cell_chars":16384,"cell_head_chars":4096},"cells_cut":0,"cells_raw":0,"read":"whole","date_system":"1900"}

{"sheet":"Mediadienst","index":0,"n_rows":28,"n_cols":2,"rows_kept":28,"cut":false,"hidden":false,"merged":[]}
["Rapportageformulier quota Europese producties - mediadiensten op aanvraag (video on demand)","Jaar 2023"]
["Vul voor elke dienst een afzonderlijk rapportageformulier in!"]
["Type mediadienst","Commerciële mediadienst"]
["Naam media-insteling (statutaire naam van uw organisatie zoals vermeld bij KvK)","vul in"]
["Naam mediadienst op aanvraag (zoals geregistreerd bij Commissariaat voor de Media)","vul in"]
["Naam mediadienst op aanvraag (zoals gebruikt naar de kijkers)","vul in"]
["Verspreidingslocatie mediadienst (URL, kabelmaatschappij, etc.)","vul in"]
["Op welk(e) land(en) richt deze dienst zich voornamelijk","vul in"]
[]
[]
["Type mediadienst: AVOD, TVOD, SVOD, Overig (graag specificeren in regel lager)","selecteer"]
["Type mediadienst: specificatie"]
["Doelgroep / Genre / Type content (specificeren in regel lager)","selecteer"]
["Doelgroep / Genre / Type content: specificatie"]
["Toelichting","Geef hier een eventuele toelichtingen op het door u ingevulde formulier. \n"]
["Aangewezen steekproefperioden"]
["periode 1","Ma 06-02-2023 (P1)"]
["periode 2","Ma 05-06-2023 (P2)"]
["periode 3","Ma 18-09-2023 (P3)"]
["periode 4","Ma 30-10-2023 (P4)"]
["Aldus naar waarheid ingevuld"]
["Naam:"]
["Functie:"]
["Datum en plaats"]
["Contactgegevens (tel.nr / e-mail)"]
["LET OP:\nIndien het kanaal niet aan het wettelijke minima voldoet dient u tevens een schriftelijke verklaring aan het Commissariaat toe te sturen waarin is opgenomen waarom niet is voldaan en welke maatregelen de media-instelling heeft/gaat nemen om in het vervolg wel aan de wettelijke bepaling te voldoen.  ","Info over de programmaquota kunt u vinden op onze website:\nhttps://www.cvdm.nl/regelgeving/wetgeving/mediawet/quotabepalingen \nHeeft u nog vragen? Neemt dan contact op met het Commissariaat voor de Media."]
["Gebruiksaaanwijzing:\nBij een opgave over het hele jaar vultt u tabblad 'P1' en 'Vindbaarheid EP' in. Bij een opgave over vier steekproefdagen vult u alle witte tabbladen in.\n- Wilt u meer weten over wat u ergens in moet vullen? Klik dan op de grijs gekleurde kolomomschrijving. U krijgt dan een toelichting op die kolom. \n- Regels toevoegen of verwijderen? Gebruik de buttons boven aan elk periodeblad.\n- Een uitgebreidere uitleg kunt u vinden op het geel gekleurde tabblad 'toelichting'\n- Heeft u meerder mediadiensten op aanvraag waarover u moet rapporteren? Gebruik dan voor elke dienst een afzonderlijk Excel rapportage formulier.\n- Heeft u nog onbeantwoorde vragen? Neem dan contact op met het Commissariaat voor de Media."]
["Versie 24-01-2023"]

{"sheet":"P1","index":1,"n_rows":108,"n_cols":18,"rows_kept":108,"cut":false,"hidden":false,"merged":[[0,15,0,17],[0,11,0,13]]}
[{"$f":"Mediadienst!B4","v":"vul in"},null,{"$f":"Mediadienst!B5","v":"vul in"},{"$f":"Mediadienst!B17","v":"Ma 06-02-2023 (P1)"}]
["Titel video","Datum vanaf","Datum tot en met","Duur\n(uu:mm:ss)\n(optioneel)","Europese productie","Land van herkomst","Producent","Distributeur","Productie-jaar\n(optioneel)",null,null,"Productie","Aantal dagen beschikbaar",{"$f":"D2","v":"Duur\n(uu:mm:ss)\n(optioneel)"},null,"Europese productie aantal","Europese productie aantal gewogen","Europese productie tijd"]
[null,null,null,0,null,null,null,null,null,null,null,{"$f":"IF(TRIM(E3)=\"\",0,1)","v":0},{"$f":"IF(TRIM(B3)=\"\",0,DATEDIF(B3,C3,\"d\")+1)","v":0},0,null,{"$f":"IF(TRIM(E3)=\"Ja\",1,0)","v":0},{"$f":"P3*M3","v":0},{"$f":"P3*N3","v":0}]
[null,null,null,0,null,null,null,null,null,null,null,{"$f":"IF(TRIM(E4)=\"\",0,1)","v":0},0,0,null,{"$f":"IF(TRIM(E4)=\"Ja\",1,0)","v":0},{"$f":"P4*M4","v":0},{"$f":"P4*N4","v":0}]
[null,null,null,0,null,null,null,null,null,null,null,0,0,0,null,0,0,0]
[null,null,null,0,null,null,null,null,null,null,null,0,0,0,null,0,0,0]
[null,null,null,0,null,null,null,null,null,null,null,0,0,0,null,0,0,0]
[null,null,null,0,null,null,null,null,null,null,null,0,0,0,null,0,0,0]
[null,null,null,0,null,null,null,null,null,null,null,0,0,0,null,0,0,0]
[null,null,null,0,null,null,null,null,null,null,null,0,0,0,null,0,0,0]
[null,null,null,0,null,null,null,null,null,null,null,0,0,0,null,0,0,0]
[null,null,null,0,null,null,null,null,null,null,null,0,0,0,null,0,0,0]
[null,null,null,0,null,null,null,null,null,null,null,0,0,0,null,0,0,0]
[null,null,null,0,null,null,null,null,null,null,null,0,0,0,null,0,0,0]
[null,null,null,0,null,null,null,null,null,null,null,0,0,0,null,0,0,0]
[null,null,null,0,null,null,null,null,null,null,null,0,0,0,null,0,0,0]
[null,null,null,0,null,null,null,null,null,null,null,0,0,0,null,0,0,0]
[null,null,null,0,null,null,null,null,null,null,null,0,0,0,null,0,0,0]
[null,null,null,0,null,null,null,null,null,null,null,0,0,0,null,0,0,0]
[null,null,null,0,null,null,null,null,null,null,null,0,0,0,null,0,0,0]
[null,null,null,0,null,null,null,null,null,null,null,0,0,0,null,0,0,0]
[null,null,null,0,null,null,null,null,null,null,null,0,0,0,null,0,0,0]
[null,null,null,0,null,null,null,null,null,null,null,0,0,0,null,0,0,0]
[null,null,null,0,null,null,null,null,null,null,null,0,0,0,null,0,0,0]
[null,null,null,0,null,null,null,null,null,null,null,0,0,0,null,0,0,0]
[null,null,null,0,null,null,null,null,null,null,null,0,0,0,null,0,0,0]
[null,null,null,0,null,null,null,null,null,null,null,0,0,0,null,0,0,0]
[null,null,null,0,null,null,null,null,null,null,null,0,0,0,null,0,0,0]
[null,null,null,0,null,null,null,null,null,null,null,0,0,0,null,0,0,0]
[null,null,null,0,null,null,null,null,null,null,null,0,0,0,null,0,0,0]
[null,null,null,0,null,null,null,null,null,null,null,0,0,0,null,0,0,0]
[null,null,null,0,null,null,null,null,null,null,null,0,0,0,null,0,0,0]
[null,null,null,0,null,null,null,null,null,null,null,0,0,0,null,0,0,0]
[null,null,null,0,null,null,null,null,null,null,null,0,0,{"$f":"D34","v":0},null,0,0,0]
[null,null,null,0,null,null,null,null,null,null,null,0,{"$f":"IF(TRIM(B35)=\"\",0,DATEDIF(B35,C35,\"d\")+1)","v":0},0,null,0,0,0]
[null,null,null,0,null,null,null,null,null,null,null,0,0,0,null,0,0,0]
[null,null,null,0,null,null,null,null,null,null,null,0,0,0,null,0,0,0]
[null,null,null,0,null,null,null,null,null,null,null,0,0,0,null,0,0,0]
[null,null,null,0,null,null,null,null,null,null,null,0,0,0,null,0,0,0]
[null,null,null,0,null,null,null,null,null,null,null,0,0,0,null,0,0,0]
[null,null,null,0,null,null,null,null,null,null,null,0,0,0,null,0,0,0]
[null,null,null,0,null,null,null,null,null,null,null,0,0,0,null,0,0,0]
[null,null,null,0,null,null,null,null,null,null,null,0,0,0,null,0,0,0]
[null,null,null,0,null,null,null,null,null,null,null,0,0,0,null,0,0,0]
[null,null,null,0,null,null,null,null,null,null,null,0,0,0,null,0,0,0]
[null,null,null,0,null,null,null,null,null,null,null,0,0,0,null,0,0,0]
[null,null,null,0,null,null,null,null,null,null,null,0,0,0,null,0,0,0]
[null,null,null,0,null,null,null,null,null,null,null,0,0,0,null,0,0,0]
[null,null,null,0,null,null,null,null,null,null,null,0,0,0,null,0,0,0]
[null,null,null,0,null,null,null,null,null,null,null,0,0,0,null,0,0,0]
[null,null,null,0,null,null,null,null,null,null,null,0,0,0,null,0,0,0]
[null,null,null,0,null,null,null,null,null,null,null,0,0,0,null,0,0,0]
[null,null,null,0,null,null,null,null,null,null,null,0,0,0,null,0,0,0]
[null,null,null,0,null,null,null,null,null,null,null,0,0,0,null,0,0,0]
[null,null,null,0,null,null,null,null,null,null,null,0,0,0,null,0,0,0]
[null,null,null,0,null,null,null,null,null,null,null,0,0,0,null,0,0,0]
[null,null,null,0,null,null,null,null,null,null,null,0,0,0,null,0,0,0]
[null,null,null,0,null,null,null,null,null,null,null,0,0,0,null,0,0,0]
[null,null,null,0,null,null,null,null,null,null,null,0,0,0,null,0,0,0]
[null,null,null,0,null,null,null,null,null,null,null,0,0,0,null,0,0,0]
[null,null,null,0,null,null,null,null,null,null,null,0,0,0,null,0,0,0]
[null,null,null,0,null,null,null,null,null,null,null,0,0,0,null,0,0,0]
[null,null,null,0,null,null,null,null,null,null,null,0,0,0,null,0,0,0]
[null,null,null,0,null,null,null,null,null,null,null,0,0,0,null,0,0,0]
[null,null,null,0,null,null,null,null,null,null,null,0,0,0,null,0,0,0]
[null,null,null,0,null,null,null,null,null,null,null,0,0,{"$f":"D66","v":0},null,0,0,0]
[null,null,null,0,null,null,null,null,null,null,null,0,{"$f":"IF(TRIM(B67)=\"\",0,DATEDIF(B67,C67,\"d\")+1)","v":0},0,null,0,0,0]
[null,null,null,0,null,null,null,null,null,null,null,{"$f":"IF(TRIM(E68)=\"\",0,1)","v":0},0,0,null,{"$f":"IF(TRIM(E68)=\"Ja\",1,0)","v":0},{"$f":"P68*M68","v":0},{"$f":"P68*N68","v":0}]
[null,null,null,0,null,null,null,null,null,null,null,0,0,0,null,0,0,0]
[null,null,null,0,null,null,null,null,null,null,null,0,0,0,null,0,0,0]
[null,null,null,0,null,null,null,null,null,null,null,0,0,0,null,0,0,0]
[null,null,null,0,null,null,null,null,null,null,null,0,0,0,null,0,0,0]
[null,null,null,0,null,null,null,null,null,null,null,0,0,0,null,0,0,0]
[null,null,null,0,null,null,null,null,null,null,null,0,0,0,null,0,0,0]
[null,null,null,0,null,null,null,null,null,null,null,0,0,0,null,0,0,0]
[null,null,null,0,null,null,null,null,null,null,null,0,0,0,null,0,0,0]
[null,null,null,0,null,null,null,null,null,null,null,0,0,0,null,0,0,0]
[null,null,null,0,null,null,null,null,null,null,null,0,0,0,null,0,0,0]
[null,null,null,0,null,null,null,null,null,null,null,0,0,0,null,0,0,0]
[null,null,null,0,null,null,null,null,null,null,null,0,0,0,null,0,0,0]
[null,null,null,0,null,null,null,null,null,null,null,0,0,0,null,0,0,0]
[null,null,null,0,null,null,null,null,null,null,null,0,0,0,null,0,0,0]
[null,null,null,0,null,null,null,null,null,null,null,0,0,0,null,0,0,0]
[null,null,null,0,null,null,null,null,null,null,null,0,0,0,null,0,0,0]
[null,null,null,0,null,null,null,null,null,null,null,0,0,0,null,0,0,0]
[null,null,null,0,null,null,null,null,null,null,null,0,0,0,null,0,0,0]
[null,null,null,0,null,null,null,null,null,null,null,0,0,0,null,0,0,0]
[null,null,null,0,null,null,null,null,null,null,null,0,0,0,null,0,0,0]
[null,null,null,0,null,null,null,null,null,null,null,0,0,0,null,0,0,0]
[null,null,null,0,null,null,null,null,null,null,null,0,0,0,null,0,0,0]
[null,null,null,0,null,null,null,null,null,null,null,0,0,0,null,0,0,0]
[null,null,null,0,null,null,null,null,null,null,null,0,0,0,null,0,0,0]
[null,null,null,0,null,null,null,null,null,null,null,0,0,0,null,0,0,0]
[null,null,null,0,null,null,null,null,null,null,null,0,0,0,null,0,0,0]
[null,null,null,0,null,null,null,null,null,null,null,0,0,0,null,0,0,0]
[null,null,null,0,null,null,null,null,null,null,null,0,0,0,null,0,0,0]
[null,null,null,0,null,null,null,null,null,null,null,0,0,0,null,0,0,0]
[null,null,null,0,null,null,null,null,null,null,null,0,0,0,null,0,0,0]
[null,null,null,0,null,null,null,null,null,null,null,0,0,0,null,0,0,0]
[null,null,null,0,null,null,null,null,null,null,null,0,0,0,null,0,0,0]
[null,null,"Aantal argumenten",{"$f":"SUM(D3:D99)","v":0},{"$f":"COUNTA(E3:E99)","v":0},null,null,null,null,null,"Totalen",{"$f":"SUM(L2:L99)","v":0},{"$f":"SUM(M2:M99)","v":0},0,null,{"$f":"SUM(P2:P99)","v":0},{"$f":"SUM(Q2:Q99)","v":0},{"$f":"SUM(R2:R99)","v":0}]
[null,null,"Aantal Ja",null,{"$f":"COUNTIF(E3:E99,\"Ja\")","v":0},null,null,null,null,null,"Percentage",null,null,null,null,{"$f":"P101/L101","v":{"$error":"#DIV/0!"}},{"$f":"Q101/M101","v":{"$error":"#DIV/0!"}},{"$f":"R101/N101","v":{"$error":"#DIV/0!"}}]
[]
[]
[]
[]
[]
["Versie:",{"$f":"Totaal!B11","v":"Versie 24-01-2023"}]

{"sheet":"P2","index":2,"n_rows":108,"n_cols":18,"rows_kept":108,"cut":false,"hidden":false,"merged":[[0,11,0,13],[0,15,0,17]]}
[{"$f":"Mediadienst!B4","v":"vul in"},null,{"$f":"Mediadienst!B5","v":"vul in"},{"$f":"Mediadienst!B18","v":"Ma 05-06-2023 (P2)"}]
["Titel video","Datum vanaf","Datum tot en met","Duur\n(uu:mm:ss)\n(optioneel)","Europese productie","Land van herkomst","Producent","Distributeur","Productie-jaar\n(optioneel)",null,null,"Productie","Aantal dagen beschikbaar",{"$f":"D2","v":"Duur\n(uu:mm:ss)\n(optioneel)"},null,"Europese productie aantal","Europese productie aantal gewogen","Europese productie tijd"]
[null,null,null,0,null,null,null,null,null,null,null,{"$f":"IF(TRIM(E3)=\"\",0,1)","v":0},{"$f":"IF(TRIM(B3)=\"\",0,DATEDIF(B3,C3,\"d\")+1)","v":0},0,null,{"$f":"IF(TRIM(E3)=\"Ja\",1,0)","v":0},{"$f":"P3*M3","v":0},{"$f":"P3*N3","v":0}]
[null,null,null,0,null,null,null,null,null,null,null,{"$f":"IF(TRIM(E4)=\"\",0,1)","v":0},0,0,null,{"$f":"IF(TRIM(E4)=\"Ja\",1,0)","v":0},{"$f":"P4*M4","v":0},{"$f":"P4*N4","v":0}]
[null,null,null,0,null,null,null,null,null,null,null,0,0,0,null,0,0,0]
[null,null,null,0,null,null,null,null,null,null,null,0,0,0,null,0,0,0]
[null,null,null,0,null,null,null,null,null,null,null,0,0,0,null,0,0,0]
[null,null,null,0,null,null,null,null,null,null,null,0,0,0,null,0,0,0]
[null,null,null,0,null,null,null,null,null,null,null,0,0,0,null,0,0,0]
[null,null,null,0,null,null,null,null,null,null,null,0,0,0,null,0,0,0]
[null,null,null,0,null,null,null,null,null,null,null,0,0,0,null,0,0,0]
[null,null,null,0,null,null,null,null,null,null,null,0,0,0,null,0,0,0]
[null,null,null,0,null,null,null,null,null,null,null,0,0,0,null,0,0,0]
[null,null,null,0,null,null,null,null,null,null,null,0,0,0,null,0,0,0]
[null,null,null,0,null,null,null,null,null,null,null,0,0,0,null,0,0,0]
[null,null,null,0,null,null,null,null,null,null,null,0,0,0,null,0,0,0]
[null,null,null,0,null,null,null,null,null,null,null,0,0,0,null,0,0,0]
[null,null,null,0,null,null,null,null,null,null,null,0,0,0,null,0,0,0]
[null,null,null,0,null,null,null,null,null,null,null,0,0,0,null,0,0,0]
[null,null,null,0,null,null,null,null,null,null,null,0,0,0,null,0,0,0]
[null,null,null,0,null,null,null,null,null,null,null,0,0,0,null,0,0,0]
[null,null,null,0,null,null,null,null,null,null,null,0,0,0,null,0,0,0]
[null,null,null,0,null,null,null,null,null,null,null,0,0,0,null,0,0,0]
[null,null,null,0,null,null,null,null,null,null,null,0,0,0,null,0,0,0]
[null,null,null,0,null,null,null,null,null,null,null,0,0,0,null,0,0,0]
[null,null,null,0,null,null,null,null,null,null,null,0,0,0,null,0,0,0]
[null,null,null,0,null,null,null,null,null,null,null,0,0,0,null,0,0,0]
[null,null,null,0,null,null,null,null,null,null,null,0,0,0,null,0,0,0]
[null,null,null,0,null,null,null,null,null,null,null,0,0,0,null,0,0,0]
[null,null,null,0,null,null,null,null,null,null,null,0,0,0,null,0,0,0]
[null,null,null,0,null,null,null,null,null,null,null,0,0,0,null,0,0,0]
[null,null,null,0,null,null,null,null,null,null,null,0,0,0,null,0,0,0]
[null,null,null,0,null,null,null,null,null,null,null,0,0,0,null,0,0,0]
[null,null,null,0,null,null,null,null,null,null,null,0,0,0,null,0,0,0]
[null,null,null,0,null,null,null,null,null,null,null,0,{"$f":"IF(TRIM(B35)=\"\",0,DATEDIF(B35,C35,\"d\")+1)","v":0},0,null,0,0,0]
[null,null,null,0,null,null,null,null,null,null,null,0,0,0,null,0,0,0]
[null,null,null,0,null,null,null,null,null,null,null,0,0,0,null,0,0,0]
[null,null,null,0,null,null,null,null,null,null,null,0,0,0,null,0,0,0]
[null,null,null,0,null,null,null,null,null,null,null,0,0,0,null,0,0,0]
[null,null,null,0,null,null,null,null,null,null,null,0,0,0,null,0,0,0]
[null,null,null,0,null,null,null,null,null,null,null,0,0,0,null,0,0,0]
[null,null,null,0,null,null,null,null,null,null,null,0,0,0,null,0,0,0]
[null,null,null,0,null,null,null,null,null,null,null,0,0,0,null,0,0,0]
[null,null,null,0,null,null,null,null,null,null,null,0,0,0,null,0,0,0]
[null,null,null,0,null,null,null,null,null,null,null,0,0,0,null,0,0,0]
[null,null,null,0,null,null,null,null,null,null,null,0,0,0,null,0,0,0]
[null,null,null,0,null,null,null,null,null,null,null,0,0,0,null,0,0,0]
[null,null,null,0,null,null,null,null,null,null,null,0,0,0,null,0,0,0]
[null,null,null,0,null,null,null,null,null,null,null,0,0,0,null,0,0,0]
[null,null,null,0,null,null,null,null,null,null,null,0,0,0,null,0,0,0]
[null,null,null,0,null,null,null,null,null,null,null,0,0,0,null,0,0,0]
[null,null,null,0,null,null,null,null,null,null,null,0,0,0,null,0,0,0]
[null,null,null,0,null,null,null,null,null,null,null,0,0,0,null,0,0,0]
[null,null,null,0,null,null,null,null,null,null,null,0,0,0,null,0,0,0]
[null,null,null,0,null,null,null,null,null,null,null,0,0,0,null,0,0,0]
[null,null,null,0,null,null,null,null,null,null,null,0,0,0,null,0,0,0]
[null,null,null,0,null,null,null,null,null,null,null,0,0,0,null,0,0,0]
[null,null,null,0,null,null,null,null,null,null,null,0,0,0,null,0,0,0]
[null,null,null,0,null,null,null,null,null,null,null,0,0,0,null,0,0,0]
[null,null,null,0,null,null,null,null,null,null,null,0,0,0,null,0,0,0]
[null,null,null,0,null,null,null,null,null,null,null,0,0,0,null,0,0,0]
[null,null,null,0,null,null,null,null,null,null,null,0,0,0,null,0,0,0]
[null,null,null,0,null,null,null,null,null,null,null,0,0,0,null,0,0,0]
[null,null,null,0,null,null,null,null,null,null,null,0,0,0,null,0,0,0]
[null,null,null,0,null,null,null,null,null,null,null,0,0,0,null,0,0,0]
[null,null,null,0,null,null,null,null,null,null,null,0,0,{"$f":"D66","v":0},null,0,0,0]
[null,null,null,0,null,null,null,null,null,null,null,0,{"$f":"IF(TRIM(B67)=\"\",0,DATEDIF(B67,C67,\"d\")+1)","v":0},0,null,0,0,0]
[null,null,null,0,null,null,null,null,null,null,null,{"$f":"IF(TRIM(E68)=\"\",0,1)","v":0},0,0,null,{"$f":"IF(TRIM(E68)=\"Ja\",1,0)","v":0},{"$f":"P68*M68","v":0},{"$f":"P68*N68","v":0}]
[null,null,null,0,null,null,null,null,null,null,null,0,0,0,null,0,0,0]
[null,null,null,0,null,null,null,null,null,null,null,0,0,0,null,0,0,0]
[null,null,null,0,null,null,null,null,null,null,null,0,0,0,null,0,0,0]
[null,null,null,0,null,null,null,null,null,null,null,0,0,0,null,0,0,0]
[null,null,null,0,null,null,null,null,null,null,null,0,0,0,null,0,0,0]
[null,null,null,0,null,null,null,null,null,null,null,0,0,0,null,0,0,0]
[null,null,null,0,null,null,null,null,null,null,null,0,0,0,null,0,0,0]
[null,null,null,0,null,null,null,null,null,null,null,0,0,0,null,0,0,0]
[null,null,null,0,null,null,null,null,null,null,null,0,0,0,null,0,0,0]
[null,null,null,0,null,null,null,null,null,null,null,0,0,0,null,0,0,0]
[null,null,null,0,null,null,null,null,null,null,null,0,0,0,null,0,0,0]
[null,null,null,0,null,null,null,null,null,null,null,0,0,0,null,0,0,0]
[null,null,null,0,null,null,null,null,null,null,null,0,0,0,null,0,0,0]
[null,null,null,0,null,null,null,null,null,null,null,0,0,0,null,0,0,0]
[null,null,null,0,null,null,null,null,null,null,null,0,0,0,null,0,0,0]
[null,null,null,0,null,null,null,null,null,null,null,0,0,0,null,0,0,0]
[null,null,null,0,null,null,null,null,null,null,null,0,0,0,null,0,0,0]
[null,null,null,0,null,null,null,null,null,null,null,0,0,0,null,0,0,0]
[null,null,null,0,null,null,null,null,null,null,null,0,0,0,null,0,0,0]
[null,null,null,0,null,null,null,null,null,null,null,0,0,0,null,0,0,0]
[null,null,null,0,null,null,null,null,null,null,null,0,0,0,null,0,0,0]
[null,null,null,0,null,null,null,null,null,null,null,0,0,0,null,0,0,0]
[null,null,null,0,null,null,null,null,null,null,null,0,0,0,null,0,0,0]
[null,null,null,0,null,null,null,null,null,null,null,0,0,0,null,0,0,0]
[null,null,null,0,null,null,null,null,null,null,null,0,0,0,null,0,0,0]
[null,null,null,0,null,null,null,null,null,null,null,0,0,0,null,0,0,0]
[null,null,null,0,null,null,null,null,null,null,null,0,0,0,null,0,0,0]
[null,null,null,0,null,null,null,null,null,null,null,0,0,0,null,0,0,0]
[null,null,null,0,null,null,null,null,null,null,null,0,0,0,null,0,0,0]
[null,null,null,0,null,null,null,null,null,null,null,0,0,0,null,0,0,0]
[null,null,null,0,null,null,null,null,null,null,null,0,0,0,null,0,0,0]
[null,null,null,0,null,null,null,null,null,null,null,0,0,0,null,0,0,0]
[null,null,"Aantal argumenten",{"$f":"SUM(D3:D99)","v":0},{"$f":"COUNTA(E3:E99)","v":0},null,null,null,null,null,"Totalen",{"$f":"SUM(L2:L99)","v":0},0,0,null,{"$f":"SUM(P2:P99)","v":0},{"$f":"SUM(Q2:Q99)","v":0},{"$f":"SUM(R2:R99)","v":0}]
[null,null,"Aantal Ja",null,{"$f":"COUNTIF(E3:E99,\"Ja\")","v":0},null,null,null,null,null,"Percentage",null,null,null,null,{"$f":"P101/L101","v":{"$error":"#DIV/0!"}},{"$f":"Q101/M101","v":{"$error":"#DIV/0!"}},{"$f":"R101/N101","v":{"$error":"#DIV/0!"}}]
[]
[]
[]
[]
[]
["Versie:",{"$f":"Totaal!B11","v":"Versie 24-01-2023"}]

{"sheet":"P3","index":3,"n_rows":108,"n_cols":18,"rows_kept":108,"cut":false,"hidden":false,"merged":[[0,11,0,13],[0,15,0,17]]}
[{"$f":"Mediadienst!B4","v":"vul in"},null,{"$f":"Mediadienst!B5","v":"vul in"},{"$f":"Mediadienst!B19","v":"Ma 18-09-2023 (P3)"}]
["Titel video","Datum vanaf","Datum tot en met","Duur\n(uu:mm:ss)\n(optioneel)","Europese productie","Land van herkomst","Producent","Distributeur","Productie-jaar\n(optioneel)",null,null,"Productie","Aantal dagen beschikbaar",{"$f":"D2","v":"Duur\n(uu:mm:ss)\n(optioneel)"},null,"Europese productie aantal","Europese productie aantal gewogen","Europese productie tijd"]
[null,null,null,0,null,null,null,null,null,null,null,{"$f":"IF(TRIM(E3)=\"\",0,1)","v":0},{"$f":"IF(TRIM(B3)=\"\",0,DATEDIF(B3,C3,\"d\")+1)","v":0},0,null,{"$f":"IF(TRIM(E3)=\"Ja\",1,0)","v":0},{"$f":"P3*M3","v":0},{"$f":"P3*N3","v":0}]
[null,null,null,0,null,null,null,null,null,null,null,{"$f":"IF(TRIM(E4)=\"\",0,1)","v":0},0,0,null,{"$f":"IF(TRIM(E4)=\"Ja\",1,0)","v":0},{"$f":"P4*M4","v":0},{"$f":"P4*N4","v":0}]
[null,null,null,0,null,null,null,null,null,null,null,0,0,0,null,0,0,0]
[null,null,null,0,null,null,null,null,null,null,null,0,0,0,null,0,0,0]
[null,null,null,0,null,null,null,null,null,null,null,0,0,0,null,0,0,0]
[null,null,null,0,null,null,null,null,null,null,null,0,0,0,null,0,0,0]
[null,null,null,0,null,null,null,null,null,null,null,0,0,0,null,0,0,0]
[null,null,null,0,null,null,null,null,null,null,null,0,0,0,null,0,0,0]
[null,null,null,0,null,null,null,null,null,null,null,0,0,0,null,0,0,0]
[null,null,null,0,null,null,null,null,null,null,null,0,0,0,null,0,0,0]
[null,null,null,0,null,null,null,null,null,null,null,0,0,0,null,0,0,0]
[null,null,null,0,null,null,null,null,null,null,null,0,0,0,null,0,0,0]
[null,null,null,0,null,null,null,null,null,null,null,0,0,0,null,0,0,0]
[null,null,null,0,null,null,null,null,null,null,null,0,0,0,null,0,0,0]
[null,null,null,0,null,null,null,null,null,null,null,0,0,0,null,0,0,0]
[null,null,null,0,null,null,null,null,null,null,null,0,0,0,null,0,0,0]
[null,null,null,0,null,null,null,null,null,null,null,0,0,0,null,0,0,0]
[null,null,null,0,null,null,null,null,null,null,null,0,0,0,null,0,0,0]
[null,null,null,0,null,null,null,null,null,null,null,0,0,0,null,0,0,0]
[null,null,null,0,null,null,null,null,null,null,null,0,0,0,null,0,0,0]
[null,null,null,0,null,null,null,null,null,null,null,0,0,0,null,0,0,0]
[null,null,null,0,null,null,null,null,null,null,null,0,0,0,null,0,0,0]
[null,null,null,0,null,null,null,null,null,null,null,0,0,0,null,0,0,0]
[null,null,null,0,null,null,null,null,null,null,null,0,0,0,null,0,0,0]
[null,null,null,0,null,null,null,null,null,null,null,0,0,0,null,0,0,0]
[null,null,null,0,null,null,null,null,null,null,null,0,0,0,null,0,0,0]
[null,null,null,0,null,null,null,null,null,null,null,0,0,0,null,0,0,0]
[null,null,null,0,null,null,null,null,null,null,null,0,0,0,null,0,0,0]
[null,null,null,0,null,null,null,null,null,null,null,0,0,0,null,0,0,0]
[null,null,null,0,null,null,null,null,null,null,null,0,0,0,null,0,0,0]
[null,null,null,0,null,null,null,null,null,null,null,0,0,0,null,0,0,0]
[null,null,null,0,null,null,null,null,null,null,null,0,0,0,null,0,0,0]
[null,null,null,0,null,null,null,null,null,null,null,0,{"$f":"IF(TRIM(B35)=\"\",0,DATEDIF(B35,C35,\"d\")+1)","v":0},0,null,0,0,0]
[null,null,null,0,null,null,null,null,null,null,null,0,0,0,null,0,0,0]
[null,null,null,0,null,null,null,null,null,null,null,0,0,0,null,0,0,0]
[null,null,null,0,null,null,null,null,null,null,null,0,0,0,null,0,0,0]
[null,null,null,0,null,null,null,null,null,null,null,0,0,0,null,0,0,0]
[null,null,null,0,null,null,null,null,null,null,null,0,0,0,null,0,0,0]
[null,null,null,0,null,null,null,null,null,null,null,0,0,0,null,0,0,0]
[null,null,null,0,null,null,null,null,null,null,null,0,0,0,null,0,0,0]
[null,null,null,0,null,null,null,null,null,null,null,0,0,0,null,0,0,0]
[null,null,null,0,null,null,null,null,null,null,null,0,0,0,null,0,0,0]
[null,null,null,0,null,null,null,null,null,null,null,0,0,0,null,0,0,0]
[null,null,null,0,null,null,null,null,null,null,null,0,0,0,null,0,0,0]
[null,null,null,0,null,null,null,null,null,null,null,0,0,0,null,0,0,0]
[null,null,null,0,null,null,null,null,null,null,null,0,0,0,null,0,0,0]
[null,null,null,0,null,null,null,null,null,null,null,0,0,0,null,0,0,0]
[null,null,null,0,null,null,null,null,null,null,null,0,0,0,null,0,0,0]
[null,null,null,0,null,null,null,null,null,null,null,0,0,0,null,0,0,0]
[null,null,null,0,null,null,null,null,null,null,null,0,0,0,null,0,0,0]
[null,null,null,0,null,null,null,null,null,null,null,0,0,0,null,0,0,0]
[null,null,null,0,null,null,null,null,null,null,null,0,0,0,null,0,0,0]
[null,null,null,0,null,null,null,null,null,null,null,0,0,0,null,0,0,0]
[null,null,null,0,null,null,null,null,null,null,null,0,0,0,null,0,0,0]
[null,null,null,0,null,null,null,null,null,null,null,0,0,0,null,0,0,0]
[null,null,null,0,null,null,null,null,null,null,null,0,0,0,null,0,0,0]
[null,null,null,0,null,null,null,null,null,null,null,0,0,0,null,0,0,0]
[null,null,null,0,null,null,null,null,null,null,null,0,0,0,null,0,0,0]
[null,null,null,0,null,null,null,null,null,null,null,0,0,0,null,0,0,0]
[null,null,null,0,null,null,null,null,null,null,null,0,0,0,null,0,0,0]
[null,null,null,0,null,null,null,null,null,null,null,0,0,0,null,0,0,0]
[null,null,null,0,null,null,null,null,null,null,null,0,0,0,null,0,0,0]
[null,null,null,0,null,null,null,null,null,null,null,0,0,0,null,0,0,0]
[null,null,null,0,null,null,null,null,null,null,null,0,0,{"$f":"D66","v":0},null,0,0,0]
[null,null,null,0,null,null,null,null,null,null,null,0,{"$f":"IF(TRIM(B67)=\"\",0,DATEDIF(B67,C67,\"d\")+1)","v":0},0,null,0,0,0]
[null,null,null,0,null,null,null,null,null,null,null,{"$f":"IF(TRIM(E68)=\"\",0,1)","v":0},0,0,null,{"$f":"IF(TRIM(E68)=\"Ja\",1,0)","v":0},{"$f":"P68*M68","v":0},{"$f":"P68*N68","v":0}]
[null,null,null,0,null,null,null,null,null,null,null,0,0,0,null,0,0,0]
[null,null,null,0,null,null,null,null,null,null,null,0,0,0,null,0,0,0]
[null,null,null,0,null,null,null,null,null,null,null,0,0,0,null,0,0,0]
[null,null,null,0,null,null,null,null,null,null,null,0,0,0,null,0,0,0]
[null,null,null,0,null,null,null,null,null,null,null,0,0,0,null,0,0,0]
[null,null,null,0,null,null,null,null,null,null,null,0,0,0,null,0,0,0]
[null,null,null,0,null,null,null,null,null,null,null,0,0,0,null,0,0,0]
[null,null,null,0,null,null,null,null,null,null,null,0,0,0,null,0,0,0]
[null,null,null,0,null,null,null,null,null,null,null,0,0,0,null,0,0,0]
[null,null,null,0,null,null,null,null,null,null,null,0,0,0,null,0,0,0]
[null,null,null,0,null,null,null,null,null,null,null,0,0,0,null,0,0,0]
[null,null,null,0,null,null,null,null,null,null,null,0,0,0,null,0,0,0]
[null,null,null,0,null,null,null,null,null,null,null,0,0,0,null,0,0,0]
[null,null,null,0,null,null,null,null,null,null,null,0,0,0,null,0,0,0]
[null,null,null,0,null,null,null,null,null,null,null,0,0,0,null,0,0,0]
[null,null,null,0,null,null,null,null,null,null,null,0,0,0,null,0,0,0]
[null,null,null,0,null,null,null,null,null,null,null,0,0,0,null,0,0,0]
[null,null,null,0,null,null,null,null,null,null,null,0,0,0,null,0,0,0]
[null,null,null,0,null,null,null,null,null,null,null,0,0,0,null,0,0,0]
[null,null,null,0,null,null,null,null,null,null,null,0,0,0,null,0,0,0]
[null,null,null,0,null,null,null,null,null,null,null,0,0,0,null,0,0,0]
[null,null,null,0,null,null,null,null,null,null,null,0,0,0,null,0,0,0]
[null,null,null,0,null,null,null,null,null,null,null,0,0,0,null,0,0,0]
[null,null,null,0,null,null,null,null,null,null,null,0,0,0,null,0,0,0]
[null,null,null,0,null,null,null,null,null,null,null,0,0,0,null,0,0,0]
[null,null,null,0,null,null,null,null,null,null,null,0,0,0,null,0,0,0]
[null,null,null,0,null,null,null,null,null,null,null,0,0,0,null,0,0,0]
[null,null,null,0,null,null,null,null,null,null,null,0,0,0,null,0,0,0]
[null,null,null,0,null,null,null,null,null,null,null,0,0,0,null,0,0,0]
[null,null,null,0,null,null,null,null,null,null,null,0,0,0,null,0,0,0]
[null,null,null,0,null,null,null,null,null,null,null,0,0,0,null,0,0,0]
[null,null,null,0,null,null,null,null,null,null,null,0,0,0,null,0,0,0]
[null,null,"Aantal argumenten",{"$f":"SUM(D3:D99)","v":0},{"$f":"COUNTA(E3:E99)","v":0},null,null,null,null,null,"Totalen",{"$f":"SUM(L2:L99)","v":0},0,0,null,{"$f":"SUM(P2:P99)","v":0},{"$f":"SUM(Q2:Q99)","v":0},{"$f":"SUM(R2:R99)","v":0}]
[null,null,"Aantal Ja",null,{"$f":"COUNTIF(E3:E99,\"Ja\")","v":0},null,null,null,null,null,"Percentage",null,null,null,null,{"$f":"P101/L101","v":{"$error":"#DIV/0!"}},{"$f":"Q101/M101","v":{"$error":"#DIV/0!"}},{"$f":"R101/N101","v":{"$error":"#DIV/0!"}}]
[]
[]
[]
[]
[]
["Versie:",{"$f":"Totaal!B11","v":"Versie 24-01-2023"}]

{"sheet":"P4","index":4,"n_rows":108,"n_cols":18,"rows_kept":108,"cut":false,"hidden":false,"merged":[[0,11,0,13],[0,15,0,17]]}
[{"$f":"Mediadienst!B4","v":"vul in"},null,{"$f":"Mediadienst!B5","v":"vul in"},{"$f":"Mediadienst!B20","v":"Ma 30-10-2023 (P4)"}]
["Titel video","Datum vanaf","Datum tot en met","Duur\n(uu:mm:ss)\n(optioneel)","Europese productie","Land van herkomst","Producent","Distributeur","Productie-jaar\n(optioneel)",null,null,"Productie","Aantal dagen beschikbaar",{"$f":"D2","v":"Duur\n(uu:mm:ss)\n(optioneel)"},null,"Europese productie aantal","Europese productie aantal gewogen","Europese productie tijd"]
[null,null,null,0,null,"Nederland","Endemol",null,2018,null,null,{"$f":"IF(TRIM(E3)=\"\",0,1)","v":0},{"$f":"IF(TRIM(B3)=\"\",0,DATEDIF(B3,C3,\"d\")+1)","v":0},0,null,{"$f":"IF(TRIM(E3)=\"Ja\",1,0)","v":0},{"$f":"P3*M3","v":0},{"$f":"P3*N3","v":0}]
[null,null,null,0,null,null,null,null,null,null,null,{"$f":"IF(TRIM(E4)=\"\",0,1)","v":0},0,0,null,{"$f":"IF(TRIM(E4)=\"Ja\",1,0)","v":0},{"$f":"P4*M4","v":0},{"$f":"P4*N4","v":0}]
[null,null,null,0,null,null,null,null,null,null,null,0,0,0,null,0,0,0]
[null,null,null,0,null,null,null,null,null,null,null,0,0,0,null,0,0,0]
[null,null,null,0,null,null,null,null,null,null,null,0,0,0,null,0,0,0]
[null,null,null,0,null,null,null,null,null,null,null,0,0,0,null,0,0,0]
[null,null,null,0,null,null,null,null,null,null,null,0,0,0,null,0,0,0]
[null,null,null,0,null,null,null,null,null,null,null,0,0,0,null,0,0,0]
[null,null,null,0,null,null,null,null,null,null,null,0,0,0,null,0,0,0]
[null,null,null,0,null,null,null,null,null,null,null,0,0,0,null,0,0,0]
[null,null,null,0,null,null,null,null,null,null,null,0,0,0,null,0,0,0]
[null,null,null,0,null,null,null,null,null,null,null,0,0,0,null,0,0,0]
[null,null,null,0,null,null,null,null,null,null,null,0,0,0,null,0,0,0]
[null,null,null,0,null,null,null,null,null,null,null,0,0,0,null,0,0,0]
[null,null,null,0,null,null,null,null,null,null,null,0,0,0,null,0,0,0]
[null,null,null,0,null,null,null,null,null,null,null,0,0,0,null,0,0,0]
[null,null,null,0,null,null,null,null,null,null,null,0,0,0,null,0,0,0]
[null,null,null,0,null,null,null,null,null,null,null,0,0,0,null,0,0,0]
[null,null,null,0,null,null,null,null,null,null,null,0,0,0,null,0,0,0]
[null,null,null,0,null,null,null,null,null,null,null,0,0,0,null,0,0,0]
[null,null,null,0,null,null,null,null,null,null,null,0,0,0,null,0,0,0]
[null,null,null,0,null,null,null,null,null,null,null,0,0,0,null,0,0,0]
[null,null,null,0,null,null,null,null,null,null,null,0,0,0,null,0,0,0]
[null,null,null,0,null,null,null,null,null,null,null,0,0,0,null,0,0,0]
[null,null,null,0,null,null,null,null,null,null,null,0,0,0,null,0,0,0]
[null,null,null,0,null,null,null,null,null,null,null,0,0,0,null,0,0,0]
[null,null,null,0,null,null,null,null,null,null,null,0,0,0,null,0,0,0]
[null,null,null,0,null,null,null,null,null,null,null,0,0,0,null,0,0,0]
[null,null,null,0,null,null,null,null,null,null,null,0,0,0,null,0,0,0]
[null,null,null,0,null,null,null,null,null,null,null,0,0,0,null,0,0,0]
[null,null,null,0,null,null,null,null,null,null,null,0,0,0,null,0,0,0]
[null,null,null,0,null,null,null,null,null,null,null,0,0,0,null,0,0,0]
[null,null,null,0,null,null,null,null,null,null,null,0,{"$f":"IF(TRIM(B35)=\"\",0,DATEDIF(B35,C35,\"d\")+1)","v":0},0,null,0,0,0]
[null,null,null,0,null,null,null,null,null,null,null,0,0,0,null,0,0,0]
[null,null,null,0,null,null,null,null,null,null,null,0,0,0,null,0,0,0]
[null,null,null,0,null,null,null,null,null,null,null,0,0,0,null,0,0,0]
[null,null,null,0,null,null,null,null,null,null,null,0,0,0,null,0,0,0]
[null,null,null,0,null,null,null,null,null,null,null,0,0,0,null,0,0,0]
[null,null,null,0,null,null,null,null,null,null,null,0,0,0,null,0,0,0]
[null,null,null,0,null,null,null,null,null,null,null,0,0,0,null,0,0,0]
[null,null,null,0,null,null,null,null,null,null,null,0,0,0,null,0,0,0]
[null,null,null,0,null,null,null,null,null,null,null,0,0,0,null,0,0,0]
[null,null,null,0,null,null,null,null,null,null,null,0,0,0,null,0,0,0]
[null,null,null,0,null,null,null,null,null,null,null,0,0,0,null,0,0,0]
[null,null,null,0,null,null,null,null,null,null,null,0,0,0,null,0,0,0]
[null,null,null,0,null,null,null,null,null,null,null,0,0,0,null,0,0,0]
[null,null,null,0,null,null,null,null,null,null,null,0,0,0,null,0,0,0]
[null,null,null,0,null,null,null,null,null,null,null,0,0,0,null,0,0,0]
[null,null,null,0,null,null,null,null,null,null,null,0,0,0,null,0,0,0]
[null,null,null,0,null,null,null,null,null,null,null,0,0,0,null,0,0,0]
[null,null,null,0,null,null,null,null,null,null,null,0,0,0,null,0,0,0]
[null,null,null,0,null,null,null,null,null,null,null,0,0,0,null,0,0,0]
[null,null,null,0,null,null,null,null,null,null,null,0,0,0,null,0,0,0]
[null,null,null,0,null,null,null,null,null,null,null,0,0,0,null,0,0,0]
[null,null,null,0,null,null,null,null,null,null,null,0,0,0,null,0,0,0]
[null,null,null,0,null,null,null,null,null,null,null,0,0,0,null,0,0,0]
[null,null,null,0,null,null,null,null,null,null,null,0,0,0,null,0,0,0]
[null,null,null,0,null,null,null,null,null,null,null,0,0,0,null,0,0,0]
[null,null,null,0,null,null,null,null,null,null,null,0,0,0,null,0,0,0]
[null,null,null,0,null,null,null,null,null,null,null,0,0,0,null,0,0,0]
[null,null,null,0,null,null,null,null,null,null,null,0,0,0,null,0,0,0]
[null,null,null,0,null,null,null,null,null,null,null,0,0,0,null,0,0,0]
[null,null,null,0,null,null,null,null,null,null,null,0,0,0,null,0,0,0]
[null,null,null,0,null,null,null,null,null,null,null,0,0,{"$f":"D66","v":0},null,0,0,0]
[null,null,null,0,null,null,null,null,null,null,null,0,{"$f":"IF(TRIM(B67)=\"\",0,DATEDIF(B67,C67,\"d\")+1)","v":0},0,null,0,0,0]
[null,null,null,0,null,null,null,null,null,null,null,{"$f":"IF(TRIM(E68)=\"\",0,1)","v":0},0,0,null,{"$f":"IF(TRIM(E68)=\"Ja\",1,0)","v":0},{"$f":"P68*M68","v":0},{"$f":"P68*N68","v":0}]
[null,null,null,0,null,null,null,null,null,null,null,0,0,0,null,0,0,0]
[null,null,null,0,null,null,null,null,null,null,null,0,0,0,null,0,0,0]
[null,null,null,0,null,null,null,null,null,null,null,0,0,0,null,0,0,0]
[null,null,null,0,null,null,null,null,null,null,null,0,0,0,null,0,0,0]
[null,null,null,0,null,null,null,null,null,null,null,0,0,0,null,0,0,0]
[null,null,null,0,null,null,null,null,null,null,null,0,0,0,null,0,0,0]
[null,null,null,0,null,null,null,null,null,null,null,0,0,0,null,0,0,0]
[null,null,null,0,null,null,null,null,null,null,null,0,0,0,null,0,0,0]
[null,null,null,0,null,null,null,null,null,null,null,0,0,0,null,0,0,0]
[null,null,null,0,null,null,null,null,null,null,null,0,0,0,null,0,0,0]
[null,null,null,0,null,null,null,null,null,null,null,0,0,0,null,0,0,0]
[null,null,null,0,null,null,null,null,null,null,null,0,0,0,null,0,0,0]
[null,null,null,0,null,null,null,null,null,null,null,0,0,0,null,0,0,0]
[null,null,null,0,null,null,null,null,null,null,null,0,0,0,null,0,0,0]
[null,null,null,0,null,null,null,null,null,null,null,0,0,0,null,0,0,0]
[null,null,null,0,null,null,null,null,null,null,null,0,0,0,null,0,0,0]
[null,null,null,0,null,null,null,null,null,null,null,0,0,0,null,0,0,0]
[null,null,null,0,null,null,null,null,null,null,null,0,0,0,null,0,0,0]
[null,null,null,0,null,null,null,null,null,null,null,0,0,0,null,0,0,0]
[null,null,null,0,null,null,null,null,null,null,null,0,0,0,null,0,0,0]
[null,null,null,0,null,null,null,null,null,null,null,0,0,0,null,0,0,0]
[null,null,null,0,null,null,null,null,null,null,null,0,0,0,null,0,0,0]
[null,null,null,0,null,null,null,null,null,null,null,0,0,0,null,0,0,0]
[null,null,null,0,null,null,null,null,null,null,null,0,0,0,null,0,0,0]
[null,null,null,0,null,null,null,null,null,null,null,0,0,0,null,0,0,0]
[null,null,null,0,null,null,null,null,null,null,null,0,0,0,null,0,0,0]
[null,null,null,0,null,null,null,null,null,null,null,0,0,0,null,0,0,0]
[null,null,null,0,null,null,null,null,null,null,null,0,0,0,null,0,0,0]
[null,null,null,0,null,null,null,null,null,null,null,0,0,0,null,0,0,0]
[null,null,null,0,null,null,null,null,null,null,null,0,0,0,null,0,0,0]
[null,null,null,0,null,null,null,null,null,null,null,0,0,0,null,0,0,0]
[null,null,null,0,null,null,null,null,null,null,null,0,0,0,null,0,0,0]
[null,null,"Aantal argumenten",{"$f":"SUM(D3:D99)","v":0},{"$f":"COUNTA(E3:E99)","v":0},null,null,null,null,null,"Totalen",{"$f":"SUM(L2:L99)","v":0},0,0,null,{"$f":"SUM(P2:P99)","v":0},{"$f":"SUM(Q2:Q99)","v":0},{"$f":"SUM(R2:R99)","v":0}]
[null,null,"Aantal Ja",null,{"$f":"COUNTIF(E3:E99,\"Ja\")","v":0},null,null,null,null,null,"Percentage",null,null,null,null,{"$f":"P101/L101","v":{"$error":"#DIV/0!"}},{"$f":"Q101/M101","v":{"$error":"#DIV/0!"}},{"$f":"R101/N101","v":{"$error":"#DIV/0!"}}]
[]
[]
[]
[]
[]
["Versie:",{"$f":"Totaal!B11","v":"Versie 24-01-2023"}]

{"sheet":"verklaring","index":5,"n_rows":6,"n_cols":3,"rows_kept":6,"cut":false,"hidden":false,"merged":[]}
[{"$f":"Mediadienst!B4","v":"vul in"}]
[]
["Geef op dit tabblad uw verklaring(en) voor series waarbij elke aflevering als afzonderlijke titel moet worden aangemerkt."]
[]
[]
["Titel serie","Toelichting","Productiekosten per aflevering"]

{"sheet":"Vindbaarheid EP","index":6,"n_rows":81,"n_cols":8,"rows_kept":81,"cut":false,"hidden":false,"merged":[[40,1,41,1],[42,0,43,0],[44,0,45,0],[71,0,71,2],[72,0,72,2],[55,0,55,2],[59,0,59,2],[60,0,60,2],[62,0,62,2],[63,0,63,2],[69,0,69,2],[70,0,70,2],[7,0,7,2],[8,0,8,1],[61,0,61,2],[12,0,17,0],[13,2,17,2],[18,0,22,0],[19,2,22,2],[24,0,27,0],[25,2,27,2],[28,0,31,0],[28,1,29,1],[34,0,34,2],[35,0,35,1],[36,0,37,0],[38,0,39,0],[40,0,41,0],[75,0,75,2],[64,0,64,2],[67,0,67,2],[68,0,68,2],[46,0,47,0],[49,0,49,2]]}
[{"$f":"Mediadienst!B4","v":"vul in"},null,{"$f":"Mediadienst!B1","v":"Jaar 2023"},null,null,null,null,"Ja"]
["Rapportageformulier/Vragenlijst ",null,null,null,null,null,null,"Nee"]
[]
["Aandacht, vindbaarheid van en toegankelijkheid tot Europese producties mediadienst op aanvraag. "]
[]
["Gelieve onderstaande gegevens in te vullen. Nadere toelichting is onder het formulier opgenomen."]
[]
["Deel I. Algemene gegevens"]
["Kolom",null,"Gegevens"]
["A","Naam media-instelling",{"$f":"Mediadienst!B4","v":"vul in"}]
["B","Naam mediadienst op aanvraag",{"$f":"Mediadienst!B5","v":"vul in"}]
["C","Locatie(s) van de mediadienst op aanvraag",{"$f":"[1]Mediadienst!B8","v":"vul in"}]
["D","Type mediadienst op aanvraag","<selecteer>"]
[null,"a. AVOD (advertenties) (Free-on-Demand)"]
[null,"b. TVOD (transactie / pay per view)"]
[null,"c. SVOD (subscription / abonnement)"]
[null,"d. VOD (overig Video on demand) (geef hiernaast een toelichting)"]
[null,"e. Gecombineerde dienst (geef hiernaast een toelichting)"]
["E","Genre","<selecteer>"]
[null,"a. selecteer hiernaast het genre van uw dienst."]
[null,"b.     Geef zonodig nierhaast een toelichting"]
[]
[]
["F","Op welk land(en) is uw dienst voornamelijk gericht.","<vul in>"]
["G","Geografische reikwijdte van de mediadienst op aanvraag","<selecteer> "]
[null,"a.     alle video’s zijn alleen toegankelijk in het land waarop de dienst voornamelijk gericht is. "]
[null,"b.     alle video’s zijn ook toegankelijk in andere landen "]
[null,"c.   anders, namelijk:"]
["H","Bevat uw dienst alleen Europese producties? Dit is bijvoorbeeld aan de orde wanneer het volledige video-aanbod binnen uw mediadienst door uw eigen media-instelling is gemaakt. Zo ja, dan verzorgt u 100% Europese werken en hoeft verder niets meer te worden ingevuld. Zo nee, verder met deel II en III. ","<selecteer>"]
[]
[null,"a. Ja (U kunt verder stoppen met invullen van dit tabblad)"]
[null,"b. Nee (verder met deel II)"]
[]
[]
["Deel II. Aandacht, vindbaarheid van en toegankelijkheid tot Europese producties"]
["Kolom",null,"Gegevens"]
["I","Homepage\nWorden op de homepage van de mediadienst op aanvraag video’s aangeboden die worden aangemerkt als Europese productie (bijvoorbeeld: video’s met het label ‘Europees’)?","<selecteer>"]
[null,"Toelichting indien gewenst"]
["J","Speciale sectie\nBeschikt de dienst over een sectie met Europese producties welke vanaf de startpagina van de dienst toegankelijke is?","<selecteer>"]
[null,"Toelichting indien gewenst"]
["K","Zoekfunctie\nBeschikt de dienst over een zoekfunctie om naar Europese producties te zoeken? (bijvoorbeeld: video’s met het label ‘Europees’)","<selecteer>"]
[]
["L","Promotie/Campagnes\nPromoot u Europese producties door middel van banners of andere vergelijkbare instrumenten?","<selecteer>"]
[null,"Toelichting indien gewenst"]
["M","Markeringen\nMaakt u Europese producties beter vindbaar door gebruik van bijvoorbeeeld markering of andere vergelijkbare instrumenten?","<selecteer>"]
[null,"Toelichting indien gewenst"]
["N","Overig\nZijn er andere manieren waarop de vindbaarheid van en toegankelijkheid tot video’s, aangemerkt als Europese producties, wordt gestimuleerd door de aanbieder van een mediadienst op aanvraag? Graag toelichten.","<selecteer> "]
[null,"Indien ja: graag hiernaast toelichten"]
[]
["Deel III. Opmerkingen"]
["O","Hier kunt u een toelichting geven of andere opmerkingen plaatsen.","<invullen> "]
[]
[]
[]
["Toelichting algemeen"]
["Aanbieders van audiovisuele mediadiensten op aanvraag dienen de productie en distributie van Europese producties te bevorderen door ervoor te zorgen dat hun catalogi een minimumaandeel aan Europese producties bevatten en dat daaraan voldoende aandacht wordt besteed. Het aanmerken in de metagegevens van audiovisuele inhoud die onder de noemer Europese producties valt, dient te worden aangemoedigd zodat die metagegevens beschikbaar zijn voor aanbieders van mediadiensten. Aandacht omvat het bevorderen van Europese producties door de toegang tot deze werken te faciliteren. Aandacht kan worden verzekerd op verschillende manieren, zoals een vanaf de startpagina van de dienst toegankelijke aan Europese producties gewijde sectie, de mogelijkheid in de als onderdeel van die dienst beschikbare zoekfunctie naar Europese producties te zoeken, het gebruik van Europese producties in de campagnes van die dienst of een minimumpercentage Europese producties die in de catalogus van die dienst worden aanbevolen, bijvoorbeeld door gebruik van banners of vergelijkbare instrumenten."]
[]
["Toelichting per vraagstelling"]
["Deel I."]
["A. - C. Deze gegevens worden overgenomen van het tabblad Mediadienst."]
["D. Type mediadienst: Een VOD (Video On Demand) kan verschillende vormen hebben zoals een abonnementsvorm (SVOD) of pay per view (TVOD). Als de toegang tot de site gratis is maar voor het media-aanbod moet worden betaald vult u dan de vorm in voor de wijze van betaling voor het media-aanbod. "]
["E. Genre: Vul hier het genre in dat het beste past bij uw dienst. Geef bij overig in de toelichting aan welk genre dan het beste bij uw dienst past. "]
["F. Geef aan op welk land uw dienst voornamelijk gericht is. Indien u zich op regio’s of continenten richt mag u ook dat aangeven. Indien er sprake is van afzonderlijke diensten per land of regio dan graag alle afzonderlijke diensten met de bijbehorende landen benoemen."]
["G. Hier gaat het om waar uw dienst bereikbaar is voor het publiek. Dit kan ook breder zijn dan het land waarop u zich met name richt. Zo kan een website gericht op Nederland door gebruik van de Nederlandse taal op zich een wereldwijd bereik hebben. Ook kan een dienst door middel van een login beperkt blijven tot geregistreerde gebruikers. Geeft u dan bij G ‘Nederland’ aan en bij H ‘gehele wereld’."]
["H. Alles wat in Europa geproduceerd is valt hier onder. Hier wordt geen onderscheid gemaakt of het door een onafhankelijke producent of door een mediadienst is geproduceerd. Onder de begripstoelichting vindt u meer informatie over wanneer een productie wel of niet als Europees wordt aangemerkt."]
[]
["Deel II."]
["I. Promoot u op de homepage Europese producties of worden op een andere wijze Euuropese producties extra onder de aandacht gebracht."]
["J. Speciale sectie: Hier dient de vraag te worden beantwoord of er binnen uw dienst een afzonderlijke sectie is opgenomen voor Europese producties. Daarbij is het van belang dat deze sectie vanaf de homepage direct benaderbaar is."]
["K. Zoekfunctie: Hier gaat het om de vraag of gebruikers van de dienst in de zoekfunctie specifiek naar Europese producties kunnen zoeken. "]
["L. Promotie/Campagnes: Heeft u op enige wijze promotie of campagnes voor Europese producties? Hierbij kunt u denken aan banners maar ook aan promo's"]
["M. Markeringen: Maakt u gebruik van markeringen of andere wijzen van highlighting om Europese prodicties extra onder de aandacht te brengen?"]
["N. Overig: Mocht u de vragen I tot en met M met ‘nee’ hebben beantwoord dan is het denkbaar dat u  nog op een andere wijze Europese producties heeft gekenmerkt zodat deze door uw gebruikers gevonden kunnen worden. Geeft u in dat geval hier aan op welke wijze dat is ingericht."]
[]
["Deel III."]
["O. Ruimte voor eventuele toelichtingen of opmerkingen welke u niet elders kunt plaatsen."]
[]
[]
[]
["Europese producties"]
["Onder Europese producties wordt verstaan videoaanbod dat is geproduceerd in een Europese staat. Een lijst van Europese staten vindt u hier."]

{"sheet":"Totaal","index":7,"n_rows":11,"n_cols":7,"rows_kept":11,"cut":false,"hidden":false,"merged":[]}
[{"$f":"Mediadienst!B4","v":"vul in"},null,null,null,null,null,{"$f":"Mediadienst!B5","v":"vul in"}]
["Periode","Aantal producties","Aantal dagen beschikbaar","Duur","Aantal Europese producties","Aantal Europese producties gewogen (dagen)","Duur\n\n(uu:mm:ss)"]
[{"$f":"Mediadienst!B17","v":"Ma 06-02-2023 (P1)"},{"$f":"'P1'!L101","v":0},{"$f":"'P1'!M101","v":0},{"$f":"'P1'!N101","v":0},{"$f":"'P1'!P101","v":0},{"$f":"'P1'!Q101","v":0},{"$f":"'P1'!R101","v":0}]
[{"$f":"Mediadienst!B18","v":"Ma 05-06-2023 (P2)"},{"$f":"'P2'!L101","v":0},{"$f":"'P2'!M101","v":0},{"$f":"'P2'!N101","v":0},{"$f":"'P2'!P101","v":0},{"$f":"'P2'!Q101","v":0},{"$f":"'P2'!R101","v":0}]
[{"$f":"Mediadienst!B19","v":"Ma 18-09-2023 (P3)"},{"$f":"'P3'!L101","v":0},{"$f":"'P3'!M101","v":0},{"$f":"'P3'!N101","v":0},{"$f":"'P3'!P101","v":0},{"$f":"'P3'!Q101","v":0},{"$f":"'P3'!R101","v":0}]
[{"$f":"Mediadienst!B20","v":"Ma 30-10-2023 (P4)"},{"$f":"'P4'!L101","v":0},{"$f":"'P4'!M101","v":0},{"$f":"'P4'!N101","v":0},{"$f":"'P4'!P101","v":0},{"$f":"'P4'!Q101","v":0},{"$f":"'P4'!R101","v":0}]
[]
["totalen",{"$f":"SUM(B3:B7)","v":0},0,0,0,0,0]
["percentage",null,null,null,{"$f":"E8/B8","v":{"$error":"#DIV/0!"}},{"$f":"F8/C8","v":{"$error":"#DIV/0!"}},{"$f":"G8/D8","v":{"$error":"#DIV/0!"}}]
[]
["Versie:",{"$f":"Mediadienst!A28","v":"Versie 24-01-2023"}]

{"sheet":"Toelichting","index":8,"n_rows":18,"n_cols":2,"rows_kept":18,"cut":false,"hidden":false,"merged":[]}
[{"$f":"Totaal!B11","v":"Versie 24-01-2023"}]
["Handleiding bij het rapportageformulier"]
[null,"Voor meer informatie verwijzen wij naar onze site (www.cvdm.nl) waarop de Beleidsregels Programmaquota zijn terug te vinden."]
[]
[null,"Regels toevoegen of verwijderen:\nGebruik hiervoor alleen de knoppen boven in het formulier. Ga op de plaats binnen het invulgedeelte staan en druk op een knop. Geef vervolgens het aantal regels aan dat ingevoegd moet worden. Voeg in geen geval op andere wijze regels toe. Dit zal tot verkeerde berekeningen leiden."]
[null,"Vul het tabblad Mediadienst in!\nHiermee maakt u duidelijk over welke media-instelling en welk kanaal de rapportage gaat."]
[null,"AVOD = advertising-based video on demand (gratis toegang tot het aanbod)\nTVOD = transactional video on demand (pay-per-view, betaal per afname)\nSVOD = subscription video on demand (Abonnement)\nOverig (geef toelichting)"]
[null,"Indien u rapporteert over het gehele jaar vult u alleen periodeblad 1 in. Indien u rapporteert over 4 steekproefdagen vult u voor elke steekproefdag een afzonderlijk periodeblad in."]
["Kolom"]
[null,"Ja / Nee\nVoor alle kolommen geldt dat waneer de kolom van toepassing is een Ja moet worden ingevuld. Indien de kolom niet van toepassing is mag voor de duidelijkheid een Nee worden ingevuld. De cel mag in dat geval ook leeg worden gelaten. Door een Nee in te vullen wordt wel duideljk dat er een codering heeft plaats gevonden."]
["A","Titel video\nHier geeft u de titel van de video in.\n\nEen serie geldt in beginsel als één titel. Zie beleidsregels programmaquota voor de uitzonderingen Indien u meent dat er sprake is van een uitzondering neemt u elke aflevering op als een afzonderlijke titel. U vult dan het tabblad verklaring in. Daar geeft u aan waarom elke aflevering als een afzonderlijke titel moet worden gezien."]
["B-C","Datum vanaf en datum tot en met: \nVoor een jaaropgave: Van elke video die is geplaats in uw catalogus vult u de dag van plaatsing en de dag van verwijdering in. Indien de video niet is verwijderd vult u de laatste dag van het jaar in als datum verwijdering.\nVoor 4 steekproefdagen vult u alleen de datum van de steekproefdag in het veld datum vanaf."]
["D","Duur (optioneel)\nGeeft u hier de duur van de video in. De notatie is uu:mm:ss. Afronden op hele minuten is toegestaan.\nDit veld is optioneel en alleen bedoeld indien u inzichtelijk wilt maken dat een berekening in duur een gunstiger resultaat van het aandeel Europese producties oplevert dan wanneer deze alleen op aantal berekend zou worden."]
["E","Europese productie: \nGeef hier aan met een ja of nee of het een productie uit de EU betreft. Voor de beoordeling wanneer u een programmaonderdeel dient aan te merken als Europese productie verwijzen we naar de Beleidsregels Programmaquota welke u kunt vinden op onze website www.cvdm.nl onder regelgeving > beleidsregels."]
["F","Kolom land van herkomst: Hier vult u de naam in van het land waar het programmaonderdeel is geproduceerd."]
["G","Producent:\nHier vult u de naam in van de producent van het programma. Indien dit onbekend is dient u in kolom H de distirbuteur te vermelden."]
["H","Distributeur:\nAlleen invullen als de producent van een programmaonderdeel volledig onbekend is. Om in deze uitzonderlijke situatie toch te kunnen vaststellen waar de productie vandaan komt, kunt u de distributeur invullen."]
["I","Productiejaar (optioneel): \nHier kunt u het jaar invullen waarin het programmaonderdeel is geproduceerd. Dit kan van belang zijn indien u zichtbaar wilt maken welk aandeel van uw Europese producties uit recente producties bestaan."]

{"sheet":"Voorbeeld","index":9,"n_rows":108,"n_cols":18,"rows_kept":108,"cut":false,"hidden":false,"merged":[[0,11,0,13],[0,15,0,17]]}
[{"$f":"Mediadienst!B4","v":"vul in"},null,{"$f":"Mediadienst!B5","v":"vul in"}]
["Titel video","Datum vanaf","Datum tot en met","Duur\n(uu:mm:ss)\n(optioneel)","Europese productie","Land van herkomst","Producent","Distributeur","Productie-jaar\n(optioneel)",null,null,"Productie","Aantal dagen beschikbaar",{"$f":"D2","v":"Duur\n(uu:mm:ss)\n(optioneel)"},null,"Europese productie aantal","Europese productie aantal gewogen","Europese productie tijd"]
["Titel 1","2021-01-01","2021-12-31",1,"Ja","Nederland","Endemol",null,2018,null,null,{"$f":"IF(TRIM(E3)=\"\",0,1)","v":1},{"$f":"IF(TRIM(B3)=\"\",0,DATEDIF(B3,C3,\"d\")+1)","v":365},1,null,{"$f":"IF(TRIM(E3)=\"Ja\",1,0)","v":1},{"$f":"P3*M3","v":365},{"$f":"P3*N3","v":1}]
["Titel 2","2021-01-01","2021-12-31",2,"Ja","Nederland","Sky High TV",null,2010,null,null,{"$f":"IF(TRIM(E4)=\"\",0,1)","v":1},365,2,null,{"$f":"IF(TRIM(E4)=\"Ja\",1,0)","v":1},{"$f":"P4*M4","v":365},{"$f":"P4*N4","v":2}]
["Titel 3","2021-01-01","2021-01-01",8.3333333333333332E-3,"Ja","Italië","De Angelis Group",null,2020,null,null,1,1,8.3333333333333332E-3,null,1,1,8.3333333333333332E-3]
["Titel 4","2021-01-01","2021-01-01",0,"Nee","USA","Netflix",null,2021,null,null,1,1,0,null,0,0,0]
["Titel 5","2021-01-01","2021-01-01",0,"Ja","Nederland","itv",null,2021,null,null,1,1,0,null,1,1,0]
["Titel 6","2021-01-01","2021-01-01",0,"Ja","Zweden","Nimbus Film Productions",null,2020,null,null,1,1,0,null,1,1,0]
["Titel 7","2021-01-01","2021-01-01",0,"Ja","Frankrijk","Air Productions",null,2018,null,null,1,1,0,null,1,1,0]
["Titel 8","2021-01-01","2021-01-01",0,"Ja","Nederland","blue circle",null,2021,null,null,1,1,0,null,1,1,0]
["Titel 9","2021-01-01","2021-01-01",0,"Ja","Duitsland","Ziegler Film & Company",null,2020,null,null,1,1,0,null,1,1,0]
["Titel 10","2021-01-01","2021-01-01",0,"Nee","UK","BBC",null,2021,null,null,1,1,0,null,0,0,0]
[null,null,null,0,null,null,null,null,null,null,null,0,0,0,null,0,0,0]
[null,null,null,0,null,null,null,null,null,null,null,0,0,0,null,0,0,0]
[null,null,null,0,null,null,null,null,null,null,null,0,0,0,null,0,0,0]
[null,null,null,0,null,null,null,null,null,null,null,0,0,0,null,0,0,0]
[null,null,null,0,null,null,null,null,null,null,null,0,0,0,null,0,0,0]
[null,null,null,0,null,null,null,null,null,null,null,0,0,0,null,0,0,0]
[null,null,null,0,null,null,null,null,null,null,null,0,0,0,null,0,0,0]
[null,null,null,0,null,null,null,null,null,null,null,0,0,0,null,0,0,0]
[null,null,null,0,null,null,null,null,null,null,null,0,0,0,null,0,0,0]
[null,null,null,0,null,null,null,null,null,null,null,0,0,0,null,0,0,0]
[null,null,null,0,null,null,null,null,null,null,null,0,0,0,null,0,0,0]
[null,null,null,0,null,null,null,null,null,null,null,0,0,0,null,0,0,0]
[null,null,null,0,null,null,null,null,null,null,null,0,0,0,null,0,0,0]
[null,null,null,0,null,null,null,null,null,null,null,0,0,0,null,0,0,0]
[null,null,null,0,null,null,null,null,null,null,null,0,0,0,null,0,0,0]
[null,null,null,0,null,null,null,null,null,null,null,0,0,0,null,0,0,0]
[null,null,null,0,null,null,null,null,null,null,null,0,0,0,null,0,0,0]
[null,null,null,0,null,null,null,null,null,null,null,0,0,0,null,0,0,0]
[null,null,null,0,null,null,null,null,null,null,null,0,0,0,null,0,0,0]
[null,null,null,0,null,null,null,null,null,null,null,0,0,0,null,0,0,0]
[null,null,null,0,null,null,null,null,null,null,null,0,0,0,null,0,0,0]
[null,null,null,0,null,null,null,null,null,null,null,0,0,0,null,0,0,0]
[null,null,null,0,null,null,null,null,null,null,null,0,{"$f":"IF(TRIM(B35)=\"\",0,DATEDIF(B35,C35,\"d\")+1)","v":0},0,null,0,0,0]
[null,null,null,0,null,null,null,null,null,null,null,0,0,0,null,0,0,0]
[null,null,null,0,null,null,null,null,null,null,null,0,0,0,null,0,0,0]
[null,null,null,0,null,null,null,null,null,null,null,0,0,0,null,0,0,0]
[null,null,null,0,null,null,null,null,null,null,null,0,0,0,null,0,0,0]
[null,null,null,0,null,null,null,null,null,null,null,0,0,0,null,0,0,0]
[null,null,null,0,null,null,null,null,null,null,null,0,0,0,null,0,0,0]
[null,null,null,0,null,null,null,null,null,null,null,0,0,0,null,0,0,0]
[null,null,null,0,null,null,null,null,null,null,null,0,0,0,null,0,0,0]
[null,null,null,0,null,null,null,null,null,null,null,0,0,0,null,0,0,0]
[null,null,null,0,null,null,null,null,null,null,null,0,0,0,null,0,0,0]
[null,null,null,0,null,null,null,null,null,null,null,0,0,0,null,0,0,0]
[null,null,null,0,null,null,null,null,null,null,null,0,0,0,null,0,0,0]
[null,null,null,0,null,null,null,null,null,null,null,0,0,0,null,0,0,0]
[null,null,null,0,null,null,null,null,null,null,null,0,0,0,null,0,0,0]
[null,null,null,0,null,null,null,null,null,null,null,0,0,0,null,0,0,0]
[null,null,null,0,null,null,null,null,null,null,null,0,0,0,null,0,0,0]
[null,null,null,0,null,null,null,null,null,null,null,0,0,0,null,0,0,0]
[null,null,null,0,null,null,null,null,null,null,null,0,0,0,null,0,0,0]
[null,null,null,0,null,null,null,null,null,null,null,0,0,0,null,0,0,0]
[null,null,null,0,null,null,null,null,null,null,null,0,0,0,null,0,0,0]
[null,null,null,0,null,null,null,null,null,null,null,0,0,0,null,0,0,0]
[null,null,null,0,null,null,null,null,null,null,null,0,0,0,null,0,0,0]
[null,null,null,0,null,null,null,null,null,null,null,0,0,0,null,0,0,0]
[null,null,null,0,null,null,null,null,null,null,null,0,0,0,null,0,0,0]
[null,null,null,0,null,null,null,null,null,null,null,0,0,0,null,0,0,0]
[null,null,null,0,null,null,null,null,null,null,null,0,0,0,null,0,0,0]
[null,null,null,0,null,null,null,null,null,null,null,0,0,0,null,0,0,0]
[null,null,null,0,null,null,null,null,null,null,null,0,0,0,null,0,0,0]
[null,null,null,0,null,null,null,null,null,null,null,0,0,0,null,0,0,0]
[null,null,null,0,null,null,null,null,null,null,null,0,0,0,null,0,0,0]
[null,null,null,0,null,null,null,null,null,null,null,0,0,{"$f":"D66","v":0},null,0,0,0]
[null,null,null,0,null,null,null,null,null,null,null,0,{"$f":"IF(TRIM(B67)=\"\",0,DATEDIF(B67,C67,\"d\")+1)","v":0},0,null,0,0,0]
[null,null,null,0,null,null,null,null,null,null,null,{"$f":"IF(TRIM(E68)=\"\",0,1)","v":0},0,0,null,{"$f":"IF(TRIM(E68)=\"Ja\",1,0)","v":0},{"$f":"P68*M68","v":0},{"$f":"P68*N68","v":0}]
[null,null,null,0,null,null,null,null,null,null,null,0,0,0,null,0,0,0]
[null,null,null,0,null,null,null,null,null,null,null,0,0,0,null,0,0,0]
[null,null,null,0,null,null,null,null,null,null,null,0,0,0,null,0,0,0]
[null,null,null,0,null,null,null,null,null,null,null,0,0,0,null,0,0,0]
[null,null,null,0,null,null,null,null,null,null,null,0,0,0,null,0,0,0]
[null,null,null,0,null,null,null,null,null,null,null,0,0,0,null,0,0,0]
[null,null,null,0,null,null,null,null,null,null,null,0,0,0,null,0,0,0]
[null,null,null,0,null,null,null,null,null,null,null,0,0,0,null,0,0,0]
[null,null,null,0,null,null,null,null,null,null,null,0,0,0,null,0,0,0]
[null,null,null,0,null,null,null,null,null,null,null,0,0,0,null,0,0,0]
[null,null,null,0,null,null,null,null,null,null,null,0,0,0,null,0,0,0]
[null,null,null,0,null,null,null,null,null,null,null,0,0,0,null,0,0,0]
[null,null,null,0,null,null,null,null,null,null,null,0,0,0,null,0,0,0]
[null,null,null,0,null,null,null,null,null,null,null,0,0,0,null,0,0,0]
[null,null,null,0,null,null,null,null,null,null,null,0,0,0,null,0,0,0]
[null,null,null,0,null,null,null,null,null,null,null,0,0,0,null,0,0,0]
[null,null,null,0,null,null,null,null,null,null,null,0,0,0,null,0,0,0]
[null,null,null,0,null,null,null,null,null,null,null,0,0,0,null,0,0,0]
[null,null,null,0,null,null,null,null,null,null,null,0,0,0,null,0,0,0]
[null,null,null,0,null,null,null,null,null,null,null,0,0,0,null,0,0,0]
[null,null,null,0,null,null,null,null,null,null,null,0,0,0,null,0,0,0]
[null,null,null,0,null,null,null,null,null,null,null,0,0,0,null,0,0,0]
[null,null,null,0,null,null,null,null,null,null,null,0,0,0,null,0,0,0]
[null,null,null,0,null,null,null,null,null,null,null,0,0,0,null,0,0,0]
[null,null,null,0,null,null,null,null,null,null,null,0,0,0,null,0,0,0]
[null,null,null,0,null,null,null,null,null,null,null,0,0,0,null,0,0,0]
[null,null,null,0,null,null,null,null,null,null,null,0,0,0,null,0,0,0]
[null,null,null,0,null,null,null,null,null,null,null,0,0,0,null,0,0,0]
[null,null,null,0,null,null,null,null,null,null,null,0,0,0,null,0,0,0]
[null,null,null,0,null,null,null,null,null,null,null,0,0,0,null,0,0,0]
[null,null,null,0,null,null,null,null,null,null,null,0,0,0,null,0,0,0]
[null,null,null,0,null,null,null,null,null,null,null,0,0,0,null,0,0,0]
[null,null,"Aantal argumenten",{"$f":"SUM(D3:D99)","v":3.0083333333333333},{"$f":"COUNTA(E3:E99)","v":10},null,null,null,null,null,"Totalen",{"$f":"SUM(L2:L99)","v":10},738,3.0083333333333333,null,{"$f":"SUM(P2:P99)","v":8},{"$f":"SUM(Q2:Q99)","v":736},{"$f":"SUM(R2:R99)","v":3.0083333333333333}]
[null,null,"Aantal Ja",null,{"$f":"COUNTIF(E3:E99,\"Ja\")","v":8},null,null,null,null,null,"Percentage",null,null,null,null,{"$f":"P101/L101","v":0.8},{"$f":"Q101/M101","v":0.99728997289972898},{"$f":"R101/N101","v":1}]
[]
[]
[]
[]
[]
["Versie:",{"$f":"Totaal!B11","v":"Versie 24-01-2023"}]

{"sheet":"Lijsten","index":10,"n_rows":15,"n_cols":5,"rows_kept":15,"cut":false,"hidden":false,"merged":[]}
["Ja","Publieke mediadienst","AVOD (advertenties) (Free-on-Demand)","Cultureel/Educatief","Onder 2 miljoen"]
["Nee","Commerciële mediadienst","TVOD (transactie pay per view)","Documentaires","Boven 2 miljoen"]
[null,null,"SVOD (abonnement)","Entertainment"]
[null,null,"VOD (overig Video on demand)","Erotiek/Adult"]
[null,null,"Gecombineerd","Film en TV-Fictie"]
[null,null,null,"Generalist"]
[null,null,null,"Home Shopping"]
[null,null,null,"Kinderen"]
[null,null,null,"Lifestyle/Vrije tijd/Gezondheid/Reizen"]
[null,null,null,"Muziek"]
[null,null,null,"Nieuws/Zakelijk"]
[null,null,null,"Parlementair/Overheid"]
[null,null,null,"Religie/Kerk"]
[null,null,null,"Sport"]
[null,null,null,"Overig (specificeren)"]